[Event "Early-Titled-Tuesday-Blitz-February-06-2024"]
[Site "Chess.com"]
[Date "2024.02.06"]
[Round "1"]
[White "chess123456s"]
[Black "Njal28"]
[Result "1/2-1/2"]
[WhiteElo "2536"]
[BlackElo "3072"]
[TimeControl "180+1"]
[EndTime "8:06:10 PST"]
[Termination "Game drawn by agreement"]

1. e4 {[%clk 0:03:00.9]} 1... e5 {[%clk 0:02:58.7]} 2. Nf3 {[%clk 0:03:01.1]}
2... Nc6 {[%clk 0:02:59.1]} 3. Bb5 {[%clk 0:03:01.3]} 3... a6 {[%clk 0:02:59.4]}
4. Ba4 {[%clk 0:03:01.7]} 4... Nf6 {[%clk 0:02:59.7]} 5. d3 {[%clk 0:03:02.2]}
5... Bc5 {[%clk 0:02:56.8]} 6. Bxc6 {[%clk 0:02:56.8]} 6... dxc6 {[%clk
0:02:54.3]} 7. Nbd2 {[%clk 0:02:57.5]} 7... Nd7 {[%clk 0:02:50.4]} 8. Nc4 {[%clk
0:02:55.6]} 8... f6 {[%clk 0:02:50.4]} 9. Be3 {[%clk 0:02:55.6]} 9... O-O {[%clk
0:02:48.4]} 10. Bxc5 {[%clk 0:02:54.7]} 10... Nxc5 {[%clk 0:02:49.3]} 11. O-O
{[%clk 0:02:54.7]} 11... Bg4 {[%clk 0:02:46.2]} 12. Ne3 {[%clk 0:02:53.5]} 12...
Bh5 {[%clk 0:02:44.1]} 13. Nf5 {[%clk 0:02:53.7]} 13... Ne6 {[%clk 0:02:41.4]}
14. Ng3 {[%clk 0:02:53.2]} 14... Bf7 {[%clk 0:02:38.7]} 15. Qd2 {[%clk 0:02:49]}
15... c5 {[%clk 0:02:38.8]} 16. a4 {[%clk 0:02:47.9]} 16... a5 {[%clk
0:02:38.7]} 17. b3 {[%clk 0:02:48.2]} 17... Qd7 {[%clk 0:02:36.8]} 18. Qe3
{[%clk 0:02:45]} 18... b6 {[%clk 0:02:36.3]} 19. h3 {[%clk 0:02:44.5]} 19...
Rad8 {[%clk 0:02:35.7]} 20. Ne2 {[%clk 0:02:44.1]} 20... Rfe8 {[%clk 0:02:31.8]}
21. Nh2 {[%clk 0:02:43.9]} 21... Bh5 {[%clk 0:02:19.3]} 22. g4 {[%clk
0:02:40.2]} 22... Bf7 {[%clk 0:02:18.8]} 23. f4 {[%clk 0:02:40.8]} 23... exf4
{[%clk 0:02:19.4]} 24. Nxf4 {[%clk 0:02:41.7]} 24... Qd4 {[%clk 0:02:01.8]} 25.
Qxd4 {[%clk 0:02:30.8]} 25... Nxd4 {[%clk 0:02:02.7]} 26. Rf2 {[%clk 0:02:30.8]}
26... Rd6 {[%clk 0:01:49.6]} 27. Nf3 {[%clk 0:02:30]} 27... Nc6 {[%clk
0:01:45.2]} 28. Raf1 {[%clk 0:02:27.7]} 28... Be6 {[%clk 0:01:29.2]} 29. Nxe6
{[%clk 0:02:20.4]} 29... Rdxe6 {[%clk 0:01:28.3]} 30. Kh2 {[%clk 0:02:20.3]}
30... h6 {[%clk 0:01:22.5]} 31. h4 {[%clk 0:02:16.1]} 31... Nd4 {[%clk
0:01:18.7]} 32. Kg3 {[%clk 0:02:08.6]} 32... Nxf3 {[%clk 0:01:05.7]} 33. Rxf3
{[%clk 0:02:08.3]} 33... Re5 {[%clk 0:01:06.6]} 34. Rf5 {[%clk 0:02:08.2]} 34...
Kf7 {[%clk 0:01:02.7]} 35. Rxe5 {[%clk 0:01:55.2]} 35... Rxe5 {[%clk 0:01:02.6]}
36. Kf4 {[%clk 0:01:55.4]} 36... Ke6 {[%clk 0:00:53.8]} 37. Rg1 {[%clk
0:01:45.4]} 37... c6 {[%clk 0:00:47.9]} 38. Rg2 {[%clk 0:01:43.3]} 38... Kd6
{[%clk 0:00:46.8]} 39. g5 {[%clk 0:01:32.3]} 39... fxg5+ {[%clk 0:00:26.6]} 40.
hxg5 {[%clk 0:01:33.2]} 40... h5 {[%clk 0:00:27.5]} 41. g6 {[%clk 0:01:30.8]}
41... h4 {[%clk 0:00:17.4]} 1/2-1/2

[Event "Early-Titled-Tuesday-Blitz-February-06-2024"]
[Site "Chess.com"]
[Date "2024.02.06"]
[Round "1"]
[White "yaguigor"]
[Black "Jojo_898"]
[Result "0-1"]
[WhiteElo "2767"]
[BlackElo "2452"]
[TimeControl "180+1"]
[EndTime "8:06:10 PST"]
[Termination "Jojo_898 won by checkmate"]

1. Nf3 {[%clk 0:03:00.9]} 1... Nf6 {[%clk 0:02:59.6]} 2. c4 {[%clk 0:03:00]}
2... b6 {[%clk 0:02:57.8]} 3. Nc3 {[%clk 0:02:55.3]} 3... Bb7 {[%clk 0:02:58.3]}
4. Qc2 {[%clk 0:02:48.9]} 4... c5 {[%clk 0:02:53.1]} 5. e4 {[%clk 0:02:35.4]}
5... d6 {[%clk 0:02:53]} 6. d4 {[%clk 0:02:34.1]} 6... cxd4 {[%clk 0:02:49.4]}
7. Nxd4 {[%clk 0:02:35]} 7... g6 {[%clk 0:02:44.9]} 8. f3 {[%clk 0:02:31.2]}
8... Bg7 {[%clk 0:02:45.4]} 9. Be3 {[%clk 0:02:31.7]} 9... O-O {[%clk
0:02:45.3]} 10. Rc1 {[%clk 0:02:26.8]} 10... Nc6 {[%clk 0:02:45.5]} 11. Qd2
{[%clk 0:02:25.1]} 11... Rc8 {[%clk 0:02:42.6]} 12. Be2 {[%clk 0:02:22.7]} 12...
Nh5 {[%clk 0:02:37.8]} 13. Nxc6 {[%clk 0:02:09.4]} 13... Bxc6 {[%clk 0:02:37.2]}
14. O-O {[%clk 0:02:09.1]} 14... Qd7 {[%clk 0:02:27.5]} 15. Rfd1 {[%clk
0:02:02.4]} 15... Rfd8 {[%clk 0:02:27.2]} 16. Nd5 {[%clk 0:01:52.5]} 16... e6
{[%clk 0:02:10.8]} 17. Nc3 {[%clk 0:01:51.1]} 17... Nf6 {[%clk 0:01:59.8]} 18.
Bg5 {[%clk 0:01:45.1]} 18... Qc7 {[%clk 0:01:42.9]} 19. Nd5 {[%clk 0:01:33.4]}
19... exd5 {[%clk 0:01:30.5]} 20. cxd5 {[%clk 0:01:33.5]} 20... Qb7 {[%clk
0:01:22.4]} 21. dxc6 {[%clk 0:01:33.1]} 21... Rxc6 {[%clk 0:01:23.3]} 22. Qd4
{[%clk 0:01:19.6]} 22... Rxc1 {[%clk 0:01:16.2]} 23. Rxc1 {[%clk 0:01:20.5]}
23... Qe7 {[%clk 0:01:16.5]} 24. Ba6 {[%clk 0:01:00.1]} 24... h6 {[%clk
0:01:14.4]} 25. Bd2 {[%clk 0:00:43.5]} 25... Nd7 {[%clk 0:01:09.4]} 26. Qb4
{[%clk 0:00:40.7]} 26... Nc5 {[%clk 0:01:09.1]} 27. Bc4 {[%clk 0:00:37.9]} 27...
Bd4+ {[%clk 0:01:07.5]} 28. Kh1 {[%clk 0:00:36.3]} 28... Be5 {[%clk 0:01:07.5]}
29. Be1 {[%clk 0:00:30.2]} 29... Qg5 {[%clk 0:01:04.8]} 30. Rd1 {[%clk
0:00:29.9]} 30... Qh5 {[%clk 0:01:02.9]} 31. g4 {[%clk 0:00:24.2]} 31... Qxh2#
{[%clk 0:01:01.9]} 0-1

[Event "Early-Titled-Tuesday-Blitz-February-06-2024"]
[Site "Chess.com"]
[Date "2024.02.06"]
[Round "1"]
[White "TangerineandLemon25"]
[Black "Akylbek2021"]
[Result "1-0"]
[WhiteElo "2611"]
[BlackElo "2272"]
[TimeControl "180+1"]
[EndTime "8:06:11 PST"]
[Termination "TangerineandLemon25 won by checkmate"]

1. b3 {[%clk 0:03:00.9]} 1... Nf6 {[%clk 0:02:59.6]} 2. Bb2 {[%clk 0:03:01.8]}
2... g6 {[%clk 0:03:00.3]} 3. g3 {[%clk 0:02:58.3]} 3... Bg7 {[%clk 0:03:00.3]}
4. Bg2 {[%clk 0:02:58.9]} 4... O-O {[%clk 0:03:01]} 5. c4 {[%clk 0:02:58.7]}
5... c5 {[%clk 0:02:51.3]} 6. Nc3 {[%clk 0:02:56]} 6... Nc6 {[%clk 0:02:51.4]}
7. e3 {[%clk 0:02:55.4]} 7... e6 {[%clk 0:02:45.2]} 8. Nge2 {[%clk 0:02:50.4]}
8... b6 {[%clk 0:02:38.7]} 9. O-O {[%clk 0:02:48.7]} 9... Bb7 {[%clk 0:02:38.9]}
10. d4 {[%clk 0:02:41.2]} 10... cxd4 {[%clk 0:02:30.3]} 11. Nxd4 {[%clk
0:02:42.1]} 11... Rc8 {[%clk 0:02:28.8]} 12. Ndb5 {[%clk 0:02:41.2]} 12... d5
{[%clk 0:02:10.6]} 13. Ba3 {[%clk 0:02:36.5]} 13... Ne7 {[%clk 0:02:03.5]} 14.
Nxa7 {[%clk 0:02:32.9]} 14... Ra8 {[%clk 0:02:00.7]} 15. Nab5 {[%clk 0:02:32.3]}
15... Qd7 {[%clk 0:01:10.3]} 16. e4 {[%clk 0:02:28.3]} 16... Rfc8 {[%clk
0:00:56.8]} 17. e5 {[%clk 0:02:18]} 17... Ne8 {[%clk 0:00:49.9]} 18. Qe2 {[%clk
0:02:17.3]} 18... dxc4 {[%clk 0:00:32.8]} 19. Rfd1 {[%clk 0:02:03.2]} 19... Nd5
{[%clk 0:00:32.7]} 20. bxc4 {[%clk 0:01:58.5]} 20... Nxc3 {[%clk 0:00:25.5]} 21.
Nxc3 {[%clk 0:01:59.4]} 21... Qc7 {[%clk 0:00:22.4]} 22. Nb5 {[%clk 0:01:59.2]}
22... Qb8 {[%clk 0:00:18]} 23. Rd7 {[%clk 0:01:58.6]} 23... Bxg2 {[%clk
0:00:17.5]} 24. Kxg2 {[%clk 0:01:59.5]} 24... Qxe5 {[%clk 0:00:12.7]} 25. Qxe5
{[%clk 0:01:48]} 25... Bxe5 {[%clk 0:00:13.6]} 26. Rc1 {[%clk 0:01:48.2]} 26...
Ra4 {[%clk 0:00:09.5]} 27. Re1 {[%clk 0:01:38.3]} 27... Bg7 {[%clk 0:00:05.6]}
28. Red1 {[%clk 0:01:30.9]} 28... Bf6 {[%clk 0:00:02.6]} 29. Rb7 {[%clk
0:01:17.8]} 29... Rcxc4 {[%clk 0:00:01.5]} 30. Rb8 {[%clk 0:01:17.6]} 30... Kg7
{[%clk 0:00:01.8]} 31. Rxe8 {[%clk 0:01:16.5]} 31... Rc2 {[%clk 0:00:01.7]} 32.
Bf8+ {[%clk 0:01:16]} 32... Kg8 {[%clk 0:00:01.4]} 33. Bh6# {[%clk 0:01:16.9]}
1-0

[Event "Early-Titled-Tuesday-Blitz-February-06-2024"]
[Site "Chess.com"]
[Date "2024.02.06"]
[Round "1"]
[White "Flameboard08"]
[Black "jlmanzanares"]
[Result "1-0"]
[WhiteElo "2549"]
[BlackElo "2034"]
[TimeControl "180+1"]
[EndTime "8:06:12 PST"]
[Termination "Flameboard08 won by resignation"]

1. f4 {[%clk 0:03:00.9]} 1... c6 {[%clk 0:02:59.4]} 2. Nf3 {[%clk 0:02:59.7]}
2... d5 {[%clk 0:02:59.6]} 3. d3 {[%clk 0:02:58]} 3... Nf6 {[%clk 0:02:57.8]} 4.
g3 {[%clk 0:02:54.1]} 4... e6 {[%clk 0:02:56.9]} 5. Bg2 {[%clk 0:02:51.8]} 5...
Be7 {[%clk 0:02:40.4]} 6. O-O {[%clk 0:02:43.2]} 6... O-O {[%clk 0:02:41.3]} 7.
h3 {[%clk 0:02:43.4]} 7... Nbd7 {[%clk 0:02:40.8]} 8. Nbd2 {[%clk 0:02:36.7]}
8... Re8 {[%clk 0:02:40.1]} 9. e4 {[%clk 0:02:13.8]} 9... dxe4 {[%clk
0:01:56.7]} 10. dxe4 {[%clk 0:02:14.7]} 10... Nc5 {[%clk 0:01:56.8]} 11. e5
{[%clk 0:02:09.8]} 11... Nfe4 {[%clk 0:01:55.5]} 12. Nxe4 {[%clk 0:02:07]} 12...
Nxe4 {[%clk 0:01:56.4]} 13. Qe1 {[%clk 0:02:07.1]} 13... Qb6+ {[%clk 0:01:55.7]}
14. Kh2 {[%clk 0:02:05.8]} 14... f5 {[%clk 0:01:52.9]} 15. exf6 {[%clk
0:02:04.5]} 15... Nxf6 {[%clk 0:01:52.7]} 16. b3 {[%clk 0:02:03.8]} 16... Bc5
{[%clk 0:01:47.8]} 17. Bb2 {[%clk 0:01:57.3]} 17... Nd5 {[%clk 0:01:46.7]} 18.
Qe5 {[%clk 0:01:44.6]} 18... Qc7 {[%clk 0:01:42.4]} 19. Qxc7 {[%clk 0:01:43.2]}
19... Nxc7 {[%clk 0:01:43.3]} 20. c4 {[%clk 0:01:43.3]} 20... h6 {[%clk
0:01:39.2]} 21. Rad1 {[%clk 0:01:38.9]} 21... a5 {[%clk 0:01:38.3]} 22. a3
{[%clk 0:01:35.3]} 22... b5 {[%clk 0:01:34.6]} 23. Ne5 {[%clk 0:01:34.6]} 23...
Bb7 {[%clk 0:01:31.1]} 24. Nxc6 {[%clk 0:01:29.4]} 24... bxc4 {[%clk 0:01:25.4]}
25. Rd7 {[%clk 0:01:26.5]} 25... Bxc6 {[%clk 0:01:21.9]} 26. Bxc6 {[%clk
0:01:23]} 26... Nd5 {[%clk 0:01:22.8]} 27. Bxa8 {[%clk 0:01:14.3]} 27... Rxa8
{[%clk 0:01:21.5]} 28. bxc4 {[%clk 0:01:14]} 28... Ne3 {[%clk 0:01:19.9]} 29.
Rxg7+ {[%clk 0:00:58.6]} 29... Kf8 {[%clk 0:01:19.2]} 30. Re1 {[%clk 0:00:49.4]}
30... Rb8 {[%clk 0:01:17.1]} 31. Re2 {[%clk 0:00:48.6]} 31... Rxb2 {[%clk
0:01:15.6]} 32. Rxb2 {[%clk 0:00:45.7]} 32... Kxg7 {[%clk 0:01:13.7]} 33. Rb5
{[%clk 0:00:42.7]} 33... Bxa3 {[%clk 0:01:10]} 34. Rxa5 {[%clk 0:00:41.4]} 34...
Bc1 {[%clk 0:01:09.7]} 35. c5 {[%clk 0:00:39.4]} 35... Nd5 {[%clk 0:01:09.5]}
36. c6 {[%clk 0:00:38.3]} 36... Kf6 {[%clk 0:01:07.8]} 37. Rxd5 {[%clk
0:00:37.4]} 37... exd5 {[%clk 0:01:06.7]} 38. c7 {[%clk 0:00:37.6]} 38... Ke6
{[%clk 0:01:05.7]} 39. c8=Q+ {[%clk 0:00:37.9]} 39... Kd6 {[%clk 0:01:03.6]} 40.
Qxc1 {[%clk 0:00:38.6]} 1-0

[Event "Early-Titled-Tuesday-Blitz-February-06-2024"]
[Site "Chess.com"]
[Date "2024.02.06"]
[Round "1"]
[White "shimastream"]
[Black "kleopl"]
[Result "1-0"]
[WhiteElo "3027"]
[BlackElo "2514"]
[TimeControl "180+1"]
[EndTime "8:06:14 PST"]
[Termination "shimastream won by resignation"]

1. Nf3 {[%clk 0:03:00.9]} 1... c5 {[%clk 0:02:58.7]} 2. e4 {[%clk 0:02:51.5]}
2... d6 {[%clk 0:02:58.6]} 3. Nc3 {[%clk 0:02:49.6]} 3... Nf6 {[%clk 0:02:56.7]}
4. e5 {[%clk 0:02:45.5]} 4... dxe5 {[%clk 0:02:54]} 5. Nxe5 {[%clk 0:02:46.4]}
5... a6 {[%clk 0:02:53.8]} 6. Be2 {[%clk 0:02:26.5]} 6... Qc7 {[%clk 0:02:51.2]}
7. d4 {[%clk 0:02:25.2]} 7... e6 {[%clk 0:02:43.9]} 8. Bf4 {[%clk 0:02:20.6]}
8... Bd6 {[%clk 0:02:36.3]} 9. Na4 {[%clk 0:02:20.4]} 9... cxd4 {[%clk
0:02:04.1]} 10. Qxd4 {[%clk 0:02:10.8]} 10... Nc6 {[%clk 0:01:14.7]} 11. Nxc6
{[%clk 0:02:02.4]} 11... Bxf4 {[%clk 0:01:13.3]} 12. Nb6 {[%clk 0:01:54.1]}
12... e5 {[%clk 0:00:20.7]} 13. Qc5 {[%clk 0:01:35.4]} 13... Rb8 {[%clk
0:00:18.6]} 14. g3 {[%clk 0:01:02]} 14... Qxc6 {[%clk 0:00:10.8]} 15. Qxc6+
{[%clk 0:01:00.4]} 15... bxc6 {[%clk 0:00:11.7]} 16. Nxc8 {[%clk 0:01:00.8]}
16... Bxg3 {[%clk 0:00:08.8]} 17. Nd6+ {[%clk 0:00:59.5]} 17... Kd7 {[%clk
0:00:08.3]} 18. Nxf7 {[%clk 0:00:57.5]} 18... Rhf8 {[%clk 0:00:06.2]} 19. hxg3
{[%clk 0:00:53.5]} 19... Rxf7 {[%clk 0:00:06.2]} 20. Bxa6 {[%clk 0:00:54]} 20...
Rxb2 {[%clk 0:00:05.8]} 21. O-O-O+ {[%clk 0:00:50.6]} 21... Kc7 {[%clk
0:00:02.8]} 22. Kxb2 {[%clk 0:00:48.8]} 1-0

[Event "Early-Titled-Tuesday-Blitz-February-06-2024"]
[Site "Chess.com"]
[Date "2024.02.06"]
[Round "1"]
[White "Shivagami"]
[Black "Lady_Nika"]
[Result "0-1"]
[WhiteElo "2202"]
[BlackElo "2585"]
[TimeControl "180+1"]
[EndTime "8:06:14 PST"]
[Termination "Lady_Nika won by resignation"]

1. d4 {[%clk 0:02:53.6]} 1... d5 {[%clk 0:02:59.6]} 2. c4 {[%clk 0:02:49.2]}
2... e6 {[%clk 0:02:59.6]} 3. Nc3 {[%clk 0:02:48.7]} 3... f5 {[%clk 0:02:59.7]}
4. Bf4 {[%clk 0:02:37.3]} 4... Nf6 {[%clk 0:02:59.2]} 5. e3 {[%clk 0:02:33]}
5... c6 {[%clk 0:02:59]} 6. Nf3 {[%clk 0:02:27.1]} 6... Bd6 {[%clk 0:02:58.4]}
7. Ne5 {[%clk 0:02:26.3]} 7... O-O {[%clk 0:02:58.2]} 8. Be2 {[%clk 0:02:13.7]}
8... Ne4 {[%clk 0:02:56.9]} 9. f3 {[%clk 0:01:51.5]} 9... Nxc3 {[%clk
0:02:55.6]} 10. bxc3 {[%clk 0:01:51.1]} 10... Qe7 {[%clk 0:02:35.2]} 11. c5
{[%clk 0:01:37.7]} 11... Bc7 {[%clk 0:02:35]} 12. h4 {[%clk 0:01:32.1]} 12...
Qd8 {[%clk 0:02:04.1]} 13. g4 {[%clk 0:01:18.9]} 13... fxg4 {[%clk 0:02:00.2]}
14. fxg4 {[%clk 0:01:17.7]} 14... Nd7 {[%clk 0:01:59.8]} 15. Nd3 {[%clk
0:01:10.4]} 15... Bxf4 {[%clk 0:01:46.5]} 16. Nxf4 {[%clk 0:01:09.1]} 16... Qe7
{[%clk 0:01:43]} 17. Qc2 {[%clk 0:00:58.4]} 17... e5 {[%clk 0:01:42.4]} 18. Ng2
{[%clk 0:00:53.2]} 18... Nf6 {[%clk 0:01:34.4]} 19. O-O-O {[%clk 0:00:38]} 19...
Bxg4 {[%clk 0:01:22.5]} 20. Rhg1 {[%clk 0:00:28.5]} 20... Bxe2 {[%clk
0:01:14.1]} 21. Qxe2 {[%clk 0:00:27]} 21... Ne4 {[%clk 0:01:14.2]} 22. Qe1
{[%clk 0:00:11.8]} 22... Rf2 {[%clk 0:01:11.1]} 23. Kb1 {[%clk 0:00:09.6]} 23...
Raf8 {[%clk 0:01:08.9]} 24. h5 {[%clk 0:00:06.3]} 24... Qc7 {[%clk 0:01:08.9]}
25. h6 {[%clk 0:00:05.7]} 25... Qa5 {[%clk 0:01:09.1]} 0-1

[Event "Early-Titled-Tuesday-Blitz-February-06-2024"]
[Site "Chess.com"]
[Date "2024.02.06"]
[Round "1"]
[White "BillieKimbah"]
[Black "AA95"]
[Result "1-0"]
[WhiteElo "2935"]
[BlackElo "2500"]
[TimeControl "180+1"]
[EndTime "8:06:15 PST"]
[Termination "BillieKimbah won on time"]

1. d4 {[%clk 0:03:00.9]} 1... Nf6 {[%clk 0:02:59.3]} 2. Nf3 {[%clk 0:03:01.1]}
2... g6 {[%clk 0:02:58.1]} 3. Bf4 {[%clk 0:02:59.9]} 3... Bg7 {[%clk 0:02:58.1]}
4. Nbd2 {[%clk 0:02:59.6]} 4... Nh5 {[%clk 0:02:53.9]} 5. Be5 {[%clk 0:02:54.7]}
5... d6 {[%clk 0:02:49.9]} 6. Bxg7 {[%clk 0:02:54.1]} 6... Nxg7 {[%clk
0:02:50.8]} 7. e4 {[%clk 0:02:53.8]} 7... O-O {[%clk 0:02:42.5]} 8. Bd3 {[%clk
0:02:46.6]} 8... c5 {[%clk 0:02:41.5]} 9. c3 {[%clk 0:02:46.1]} 9... Nc6 {[%clk
0:02:38.2]} 10. d5 {[%clk 0:02:45.9]} 10... Ne5 {[%clk 0:02:36.1]} 11. Nxe5
{[%clk 0:02:45.7]} 11... dxe5 {[%clk 0:02:37]} 12. Nc4 {[%clk 0:02:45.5]} 12...
Qc7 {[%clk 0:02:29.3]} 13. a4 {[%clk 0:02:44.5]} 13... Nh5 {[%clk 0:02:23]} 14.
g3 {[%clk 0:02:35.9]} 14... Bd7 {[%clk 0:02:06.4]} 15. O-O {[%clk 0:02:29.8]}
15... Bh3 {[%clk 0:01:38.5]} 16. Re1 {[%clk 0:02:28.5]} 16... Bd7 {[%clk
0:01:04.1]} 17. Qd2 {[%clk 0:02:24.5]} 17... Rad8 {[%clk 0:00:58]} 18. Qg5
{[%clk 0:02:20.8]} 18... f6 {[%clk 0:00:56.6]} 19. Qe3 {[%clk 0:02:20]} 19...
Bc8 {[%clk 0:00:53.2]} 20. b4 {[%clk 0:02:18]} 20... cxb4 {[%clk 0:00:32.9]} 21.
cxb4 {[%clk 0:02:18.9]} 21... Qd7 {[%clk 0:00:31.3]} 22. Qxa7 {[%clk 0:02:13.7]}
22... Qh3 {[%clk 0:00:25.6]} 23. Bf1 {[%clk 0:02:11.9]} 23... Qd7 {[%clk
0:00:21.2]} 24. Qc5 {[%clk 0:02:08.7]} 24... e6 {[%clk 0:00:15.3]} 25. d6 {[%clk
0:02:05.7]} 25... Qg7 {[%clk 0:00:14.1]} 26. Nb6 {[%clk 0:02:04.8]} 26... Bd7
{[%clk 0:00:14.1]} 27. a5 {[%clk 0:01:56.4]} 27... f5 {[%clk 0:00:13.9]} 28. a6
{[%clk 0:01:54.7]} 28... f4 {[%clk 0:00:13.8]} 29. a7 {[%clk 0:01:51.1]} 29...
fxg3 {[%clk 0:00:13.6]} 30. hxg3 {[%clk 0:01:50.8]} 30... Qh6 {[%clk 0:00:09.2]}
31. Nxd7 {[%clk 0:01:48.7]} 31... Rxd7 {[%clk 0:00:08.8]} 32. a8=Q {[%clk
0:01:48.5]} 32... Rf7 {[%clk 0:00:08.4]} 33. Qe3 {[%clk 0:01:45.9]} 33... Nf4
{[%clk 0:00:07.3]} 34. gxf4 {[%clk 0:01:44.4]} 34... exf4 {[%clk 0:00:07.8]} 35.
Qf3 {[%clk 0:01:44.1]} 35... Qg5+ {[%clk 0:00:06.4]} 36. Bg2 {[%clk 0:01:43.8]}
36... Qe5 {[%clk 0:00:06.2]} 37. Red1 {[%clk 0:01:38.9]} 37... h5 {[%clk
0:00:03.8]} 38. d7 {[%clk 0:01:38.4]} 38... Rxa8 {[%clk 0:00:02.5]} 39. Rxa8+
{[%clk 0:01:37.6]} 39... Kg7 {[%clk 0:00:03.3]} 40. d8=Q {[%clk 0:01:37]} 1-0

[Event "Early-Titled-Tuesday-Blitz-February-06-2024"]
[Site "Chess.com"]
[Date "2024.02.06"]
[Round "1"]
[White "Ruchess27"]
[Black "snowlord"]
[Result "0-1"]
[WhiteElo "2473"]
[BlackElo "2870"]
[TimeControl "180+1"]
[EndTime "8:06:16 PST"]
[Termination "snowlord won on time"]

1. d4 {[%clk 0:03:00.9]} 1... Nf6 {[%clk 0:02:58]} 2. c4 {[%clk 0:03:01.4]} 2...
Nc6 {[%clk 0:02:58.4]} 3. Nf3 {[%clk 0:03:01]} 3... d6 {[%clk 0:02:58.9]} 4. g3
{[%clk 0:02:59.9]} 4... e5 {[%clk 0:02:59]} 5. d5 {[%clk 0:02:55.5]} 5... Ne7
{[%clk 0:02:57.2]} 6. Bg2 {[%clk 0:02:54.8]} 6... Ng6 {[%clk 0:02:57.5]} 7. Nc3
{[%clk 0:02:53.8]} 7... Be7 {[%clk 0:02:57.6]} 8. O-O {[%clk 0:02:51.2]} 8...
O-O {[%clk 0:02:57.4]} 9. e4 {[%clk 0:02:47.3]} 9... Ne8 {[%clk 0:02:49.7]} 10.
Ne1 {[%clk 0:02:43]} 10... f5 {[%clk 0:02:48.8]} 11. exf5 {[%clk 0:02:23.5]}
11... Bxf5 {[%clk 0:02:49.7]} 12. Nd3 {[%clk 0:02:19.9]} 12... Bg5 {[%clk
0:02:47.5]} 13. f4 {[%clk 0:02:14.8]} 13... Bxd3 {[%clk 0:02:22.8]} 14. Qxd3
{[%clk 0:02:15.7]} 14... exf4 {[%clk 0:02:23.3]} 15. Ne4 {[%clk 0:01:57.1]}
15... Bh6 {[%clk 0:02:20.6]} 16. gxf4 {[%clk 0:01:43.3]} 16... Bxf4 {[%clk
0:02:20.8]} 17. Bxf4 {[%clk 0:01:30.4]} 17... Nxf4 {[%clk 0:02:21.7]} 18. Qe3
{[%clk 0:01:20.4]} 18... Qh4 {[%clk 0:02:20]} 19. Rf3 {[%clk 0:01:06.4]} 19...
Qg4 {[%clk 0:02:18.8]} 20. Ng3 {[%clk 0:00:50.2]} 20... g5 {[%clk 0:01:51.8]}
21. Raf1 {[%clk 0:00:41.6]} 21... Ng7 {[%clk 0:01:47.8]} 22. Kh1 {[%clk
0:00:20.5]} 22... Nf5 {[%clk 0:01:42.4]} 23. Qf2 {[%clk 0:00:19.6]} 23... Nh4
{[%clk 0:01:41.3]} 24. h3 {[%clk 0:00:08.4]} 24... Qd7 {[%clk 0:01:35.2]} 25.
Rxf4 {[%clk 0:00:05.3]} 25... Rxf4 {[%clk 0:01:34.6]} 26. Qe3 {[%clk 0:00:04.2]}
26... Raf8 {[%clk 0:01:32.6]} 27. Rg1 {[%clk 0:00:03.6]} 27... Nxg2 {[%clk
0:01:27.1]} 28. Rxg2 {[%clk 0:00:03.7]} 28... Qxh3+ {[%clk 0:01:26.8]} 29. Kg1
{[%clk 0:00:03]} 29... Rf1+ {[%clk 0:01:18.3]} 30. Nxf1 {[%clk 0:00:02.6]} 30...
Rxf1+ {[%clk 0:01:19.2]} 0-1